fUSD/lending_fUSD_20240620
["ID","MTS","AMOUNT","RATE_DAILY","PERIOD"]
[329957824,1718868638766,-500.0,0.00013698,2]
[329957825,1718868638776,-506.55513885,0.00013698,2]
[329957826,1718868638786,-500.0,0.00013698,2]
[329957827,1718868638797,-500.0,0.00013698,2]
[329957828,1718868638807,-525.33,0.00013698,2]
[329957829,1718868638817,-500.0,0.00013698,2]
[329957830,1718868638827,-500.0,0.00013698,2]
[329957831,1718868638837,-500.0,0.00013698,2]
[329957832,1718868638847,-500.0,0.00013698,2]
[329957833,1718868638857,-1000.0,0.00013698,2]
[329957834,1718868638866,-500.0,0.00013698,2]
[329957835,1718868638878,-500.0,0.00013698,2]
[329957836,1718868638888,-532.58,0.00013698,2]
[329957837,1718868638898,-637.55,0.00013698,2]
[329957838,1718868638908,-500.0,0.00013698,2]
[329957839,1718868638918,-500.0,0.00013698,2]
[329957840,1718868638928,-500.0,0.00013698,2]
[329957841,1718868638938,-500.0,0.00013698,2]
[329957842,1718868638949,-514.48236021,0.00013698,2]
[329957843,1718868638959,-500.0,0.00013698,2]
[329957844,1718868638969,-839.74,0.00013698,2]
[329957845,1718868638980,-615.51,0.00013698,2]
[329957846,1718868638989,-500.0,0.00013698,2]
[329957847,1718868639000,-500.0,0.00013698,2]
[329957848,1718868639010,-500.0,0.00013698,2]
[329957849,1718868639021,-500.0,0.00013698,2]
[329957850,1718868639032,-500.0,0.00013698,2]
[329957851,1718868639107,-500.0,0.00013698,2]
[329957852,1718868639122,-500.0,0.00013698,2]
[329957853,1718868639133,-500.0,0.00013698,2]
[329957854,1718868639143,-546.39,0.00013698,2]
[329957855,1718868639154,-619.83,0.00013698,2]
[329957856,1718868639164,-500.0,0.00013698,2]
[329957857,1718868639174,-500.0,0.00013698,2]
[329957858,1718868639184,-500.0,0.00013698,2]
[329957859,1718868639195,-500.0,0.00013698,2]
[329957860,1718868639205,-500.0,0.00013698,2]
[329957861,1718868639215,-500.0,0.00013698,2]
[329957862,1718868639225,-500.0,0.00013698,2]
[329957863,1718868639235,-618.86,0.00013698,2]
[329957864,1718868639244,-500.0,0.00013698,2]
[329957865,1718868639255,-500.0,0.00013698,2]
[329957866,1718868639265,-500.0,0.00013698,2]
[329957867,1718868639275,-500.0,0.00013698,2]
[329957868,1718868639285,-500.0,0.00013698,2]
[329957869,1718868639295,-510.76454081,0.00013698,2]
[329957871,1718868639306,-644.03,0.00013698,2]
[329957873,1718868639316,-500.0,0.00013698,2]
[329957875,1718868639327,-500.0,0.00013698,2]
[329957878,1718868639338,-500.0,0.00013698,2]
[329957880,1718868639347,-507.31755879,0.00013698,2]
[329957883,1718868639358,-725.91,0.00013698,2]
[329957885,1718868639368,-500.0,0.00013698,2]
[329957887,1718868639380,-500.0,0.00013698,2]
[329957889,1718868639391,-684.25,0.00013698,2]
[329957891,1718868639401,-500.0,0.00013698,2]
[329957893,1718868639411,-500.0,0.00013698,2]
[329957895,1718868639420,-500.0,0.00013698,2]
[329957897,1718868639431,-534.66,0.00013698,2]
[329957899,1718868639440,-500.0,0.00013698,2]
[329957901,1718868639450,-558.52343519,0.00013698,2]
[329957903,1718868639460,-500.0,0.00013698,2]
[329957905,1718868639470,-748.11,0.00013698,2]
[329957907,1718868639481,-500.0,0.00013698,2]
[329957909,1718868639491,-500.0,0.00013698,2]
[329957911,1718868639500,-613.63,0.00013698,2]
[329957913,1718868639511,-500.0,0.00013698,2]
[329957915,1718868639520,-500.0,0.00013698,2]
[329957917,1718868639530,-500.0,0.00013698,2]
[329957919,1718868639540,-500.0,0.00013698,2]
[329957921,1718868639550,-944.27,0.00013698,2]
[329957923,1718868639560,-500.0,0.00013698,2]
[329957924,1718868639570,-500.0,0.00013698,2]
[329957925,1718868639580,-500.0,0.00013698,2]
[329957926,1718868639590,-500.0,0.00013698,2]
[329957927,1718868639600,-500.0,0.00013698,2]
[329957928,1718868639611,-500.0,0.00013698,2]
[329957929,1718868639621,-500.0,0.00013698,2]
[329957930,1718868639631,-500.0,0.00013698,2]
[329957931,1718868639641,-500.0,0.00013698,2]
[329957932,1718868639652,-500.0,0.00013698,2]
[329957933,1718868639662,-500.0,0.00013698,2]
[329957934,1718868639672,-500.0,0.00013698,2]
[329957935,1718868639682,-500.0,0.00013698,2]
[329957936,1718868639691,-529.29,0.00013698,2]
[329957937,1718868639701,-500.0,0.00013698,2]
[329957938,1718868639711,-500.0,0.00013698,2]
[329957939,1718868639722,-543.9,0.00013698,2]
[329957940,1718868639732,-500.0,0.00013698,2]
[329957943,1718868639742,-500.0,0.00013698,2]
[329957944,1718868639753,-500.0,0.00013698,2]
[329957945,1718868639763,-685.14,0.00013698,2]
[329957946,1718868639773,-500.0,0.00013698,2]
[329957948,1718868639783,-500.0,0.00013698,2]
[329957950,1718868639793,-500.0,0.00013698,2]
[329957952,1718868639804,-500.0,0.00013698,2]
[329957954,1718868639815,-500.0,0.00013698,2]
[329957956,1718868639826,-500.0,0.00013698,2]
[329957957,1718868639836,-779.85,0.00013698,2]
[329957958,1718868639846,-500.0,0.00013698,2]
[329957959,1718868639857,-500.0,0.00013698,2]
[329957960,1718868639867,-539.01402092,0.00013698,2]
[329957961,1718868639880,-646.19,0.00013698,2]
[329957962,1718868639890,-629.42,0.00013698,2]
[329957963,1718868639900,-500.0,0.00013698,2]
[329957964,1718868639910,-500.0,0.00013698,2]
[329957965,1718868639920,-500.0,0.00013698,2]
[329957966,1718868639929,-500.0,0.00013698,2]
[329957967,1718868639940,-774.68,0.00013698,2]
[329957968,1718868639950,-500.0,0.00013698,2]
[329957969,1718868639960,-500.0,0.00013698,2]
[329957970,1718868639971,-500.0,0.00013698,2]
[329957971,1718868639983,-500.0,0.00013698,2]
[329957972,1718868639993,-500.0,0.00013698,2]
[329957973,1718868640004,-500.0,0.00013698,2]
[329957974,1718868640015,-579.46,0.00013698,2]
[329957975,1718868640025,-500.0,0.00013698,2]
[329957976,1718868640035,-500.0,0.00013698,2]
[329957977,1718868640046,-500.0,0.00013698,2]
[329957978,1718868640056,-500.0,0.00013698,2]
[329957979,1718868640067,-817.84,0.00013698,2]
[329957980,1718868640077,-500.0,0.00013698,2]
[329957981,1718868640086,-500.0,0.00013698,2]
[329957982,1718868640096,-500.0,0.00013698,2]
[329957983,1718868640110,-610.93,0.00013698,2]
[329957984,1718868640122,-500.0,0.00013698,2]
[329957986,1718868640132,-500.0,0.00013698,2]
[329957987,1718868640142,-500.0,0.00013698,2]
[329957988,1718868640154,-823.22,0.00013698,2]
[329957990,1718868640165,-502.23,0.00013698,2]
[329957992,1718868640175,-1326.15,0.00013698,2]
[329957995,1718868640185,-500.0,0.00013698,2]
[329957998,1718868640198,-500.0,0.00013698,2]
[329958000,1718868640209,-500.0,0.00013698,2]
[329958002,1718868640219,-534.77,0.00013698,2]
[329958004,1718868640230,-500.0,0.00013698,2]
[329958006,1718868640241,-500.0,0.00013698,2]
[329958008,1718868640252,-654.34,0.00013698,2]
[329958009,1718868640262,-500.0,0.00013698,2]
[329958010,1718868640273,-500.0,0.00013698,2]
[329958011,1718868640283,-500.0,0.00013698,2]
[329958012,1718868640294,-500.0,0.00013698,2]
[329958013,1718868640305,-500.0,0.00013698,2]
[329958014,1718868640316,-500.0,0.00013698,2]
[329958015,1718868640327,-594.03,0.00013698,2]
[329958016,1718868640338,-500.0,0.00013698,2]
[329958017,1718868640348,-500.0,0.00013698,2]
[329958018,1718868640359,-500.0,0.00013698,2]
[329958019,1718868640370,-500.0,0.00013698,2]
[329958020,1718868640384,-500.0,0.00013698,2]
[329958021,1718868640395,-500.0,0.00013698,2]
[329958022,1718868640407,-508.9617531,0.00013698,2]
[329958023,1718868640418,-500.0,0.00013698,2]
[329958024,1718868640428,-500.0,0.00013698,2]
[329958025,1718868640438,-500.0,0.00013698,2]
[329958026,1718868640449,-500.0,0.00013698,2]
[329958027,1718868640460,-500.0,0.00013698,2]
[329958028,1718868640469,-870.62,0.00013698,2]
[329958029,1718868640479,-500.0,0.00013698,2]
[329958030,1718868640490,-500.0,0.00013698,2]
[329958031,1718868640501,-500.0,0.00013698,2]
[329958032,1718868640511,-744.24,0.00013698,2]
[329958033,1718868640522,-537.96,0.00013698,2]
[329958034,1718868640532,-574.60227236,0.00013698,2]
[329958035,1718868640542,-500.0,0.00013698,2]
[329958036,1718868640552,-500.0,0.00013698,2]
[329958037,1718868640562,-500.0,0.00013698,2]
[329958038,1718868640572,-500.0,0.00013698,2]
[329958039,1718868640583,-500.0,0.00013698,2]
[329958040,1718868640593,-500.0,0.00013698,2]
[329958041,1718868640603,-549.23,0.00013698,2]
[329958042,1718868640613,-500.0,0.00013698,2]
[329958043,1718868640623,-500.0,0.00013698,2]
[329958044,1718868640634,-500.0,0.00013698,2]
[329958045,1718868640644,-768.02,0.00013698,2]
[329958046,1718868640654,-500.0,0.00013698,2]
[329958047,1718868640664,-500.0,0.00013698,2]
[329958048,1718868640674,-500.0,0.00013698,2]
[329958049,1718868640684,-500.0,0.00013698,2]
[329958050,1718868640694,-799.13,0.00013698,2]
[329958051,1718868640705,-500.0,0.00013698,2]
[329958052,1718868640714,-500.0,0.00013698,2]
[329958053,1718868640725,-550.57,0.00013698,2]
[329958054,1718868640735,-500.0,0.00013698,2]
[329958055,1718868640745,-500.0,0.00013698,2]
[329958056,1718868640755,-500.0,0.00013698,2]
[329958057,1718868640765,-500.0,0.00013698,2]
[329958058,1718868640775,-500.0,0.00013698,2]
[329958059,1718868640786,-816.5,0.00013698,2]
[329958060,1718868640797,-500.0,0.00013698,2]
[329958061,1718868640807,-500.0,0.00013698,2]
[329958062,1718868640817,-500.0,0.00013698,2]
[329958063,1718868640827,-500.0,0.00013698,2]
[329958064,1718868640837,-500.0,0.00013698,2]
[329958065,1718868640847,-500.0,0.00013698,2]
[329958066,1718868640857,-584.37,0.00013698,2]
[329958067,1718868640866,-500.0,0.00013698,2]
[329958069,1718868640878,-500.0,0.00013698,2]
[329958071,1718868640888,-500.0,0.00013698,2]
[329958072,1718868640898,-500.0,0.00013698,2]
[329958074,1718868640908,-500.0,0.00013698,2]
[329958076,1718868640919,-574.6,0.00013698,2]
[329958078,1718868640929,-500.0,0.00013698,2]
[329958079,1718868640939,-530.01,0.00013698,2]
[329958081,1718868640950,-266.08,0.00013698,2]
[329958083,1718868640961,-500.0,0.00013698,2]
[329958085,1718868640971,-599.01,0.00013698,2]
[329958086,1718868640981,-500.0,0.00013698,2]
[329958088,1718868640992,-623.88,0.00013698,2]
[329958090,1718868641002,-748.17,0.00013698,2]
[329958091,1718868641011,-500.0,0.00013698,2]
[329958093,1718868641021,-500.0,0.00013698,2]
[329958095,1718868641031,-500.0,0.00013698,2]
[329958097,1718868641045,-589.71409324,0.00013698,2]
[329958099,1718868641054,-514.51987873,0.00013698,2]
[329958101,1718868641064,-500.0,0.00013698,2]
[329958103,1718868641074,-500.0,0.00013698,2]
[329958104,1718868641084,-500.0,0.00013698,2]
[329958106,1718868641093,-500.0,0.00013698,2]
[329958108,1718868641103,-500.0,0.00013698,2]
[329958110,1718868641114,-500.0,0.00013698,2]
[329958111,1718868641127,-500.0,0.00013698,2]
[329958113,1718868641137,-788.31,0.00013698,2]
[329958115,1718868641147,-500.0,0.00013698,2]
[329958117,1718868641158,-500.0,0.00013698,2]
[329958119,1718868641167,-940.59,0.00013698,2]
[329958121,1718868641177,-500.0,0.00013698,2]
[329958122,1718868641186,-500.0,0.00013698,2]
[329958124,1718868641199,-652.45,0.00013698,2]
[329958126,1718868641209,-538.89,0.00013698,2]
[329958128,1718868641218,-500.0,0.00013698,2]
[329958130,1718868641228,-500.0,0.00013698,2]
[329958132,1718868641238,-500.0,0.00013698,2]
[329958133,1718868641246,-949.63,0.00013698,2]
[329958135,1718868641256,-500.0,0.00013698,2]
[329958137,1718868641265,-544.02,0.00013698,2]
[329958139,1718868641275,-530.66,0.00013698,2]
[329958141,1718868641285,-966.26,0.00013698,2]
[329958143,1718868641295,-1067.06,0.00013698,2]
[329958144,1718868641304,-794.53,0.00013698,2]
[329958146,1718868641314,-523.33,0.00013698,2]
[329958148,1718868641323,-974.8,0.00013698,2]
[329958150,1718868641333,-500.0,0.00013698,2]
[329958152,1718868641343,-500.0,0.00013698,2]
[329958154,1718868641352,-2662.68,0.00013698,2]
[329958156,1718868641361,-500.0,0.00013698,2]
[329958157,1718868641371,-500.0,0.00013698,2]
[329958159,1718868641382,-500.0,0.00013698,2]
[329958161,1718868641391,-500.0,0.00013698,2]
[329958163,1718868641401,-500.0,0.00013698,2]
[329958165,1718868641411,-21103.71,0.00013698,2]
[329958167,1718868641421,-3103.22,0.00013698,2]
[329958169,1718868641430,-893.46,0.00013698,2]
[329958170,1718868641440,-500.0,0.00013698,2]
[329958172,1718868641449,-629.31,0.00013698,2]
[329958174,1718868641459,-840.47,0.00013698,2]
[329958176,1718868641468,-2412.32,0.00013698,2]
[329958178,1718868641477,-2225.07,0.00013698,2]
[329958179,1718868641487,-500.0,0.00013698,2]
[329958181,1718868641496,-500.0,0.00013698,2]
[329958183,1718868641505,-500.0,0.00013698,2]
[329958185,1718868641515,-1397.1,0.00013698,2]
[329958187,1718868641524,-500.0,0.00013698,2]
[329958189,1718868641534,-297.38351649,0.00013698,2]
[329958190,1718868641543,-633.37,0.00013698,2]
[329958192,1718868641552,-563.87,0.00013698,2]
[329958194,1718868641561,-500.0,0.00013698,2]
[329958196,1718868641570,-500.0,0.00013698,2]
[329958198,1718868641580,-2404.06,0.00013698,2]
[329958199,1718868641590,-500.0,0.00013698,2]
[329958201,1718868641599,-500.0,0.00013698,2]
[329958203,1718868641609,-1917.31,0.00013698,2]
[329958205,1718868641619,-1568.95,0.00013698,2]
[329958207,1718868641629,-500.0,0.00013698,2]
[329958209,1718868641639,-500.0,0.00013698,2]
[329958210,1718868641649,-500.0,0.00013698,2]
[329958212,1718868641658,-653.22,0.00013698,2]
[329958214,1718868641667,-500.0,0.00013698,2]
[329958216,1718868641677,-569.85,0.00013698,2]
[329958218,1718868641687,-5623.28,0.00013698,2]
[329958219,1718868641697,-500.0,0.00013698,2]
[329958220,1718868641706,-500.0,0.00013698,2]
[329958221,1718868641716,-933.68,0.00013698,2]
[329958222,1718868641725,-500.0,0.00013698,2]
[329958223,1718868641735,-2622.51,0.00013698,2]
[329958224,1718868641745,-950.3,0.00013698,2]
[329958225,1718868641754,-500.0,0.00013698,2]
[329958226,1718868641763,-500.0,0.00013698,2]
[329958227,1718868641773,-1933.34,0.00013698,2]
[329958228,1718868641782,-500.0,0.00013698,2]
[329958229,1718868641792,-500.0,0.00013698,2]
[329958230,1718868641802,-6152.72,0.00013698,2]
[329958231,1718868641811,-500.0,0.00013698,2]
[329958232,1718868641821,-500.0,0.00013698,2]
[329958234,1718868641830,-550.4,0.00013698,2]
[329958236,1718868641840,-500.0,0.00013698,2]
[329958238,1718868641849,-500.0,0.00013698,2]
[329958240,1718868641859,-500.0,0.00013698,2]
[329958242,1718868641869,-500.0,0.00013698,2]
[329958244,1718868641880,-1248.72,0.00013698,2]
[329958246,1718868641890,-500.0,0.00013698,2]
[329958248,1718868641901,-500.0,0.00013698,2]
[329958250,1718868641911,-500.0,0.00013698,2]
[329958252,1718868641921,-500.0,0.00013698,2]
[329958254,1718868641931,-517.17,0.00013698,2]
[329958256,1718868641940,-500.0,0.00013698,2]
[329958258,1718868641950,-630.78,0.00013698,2]
[329958260,1718868641960,-609.35,0.00013698,2]
[329958262,1718868641970,-10569.28,0.00013698,2]
[329958264,1718868641980,-500.0,0.00013698,2]
[329958266,1718868641990,-618.84,0.00013698,2]
[329958268,1718868642000,-1071.61,0.00013698,2]
[329958270,1718868642010,-1177.78,0.00013698,2]
[329958272,1718868642020,-500.0,0.00013698,2]
[329958274,1718868642031,-500.0,0.00013698,2]
[329958276,1718868642041,-500.0,0.00013698,2]
[329958278,1718868642052,-1448.13,0.00013698,2]
[329958280,1718868642061,-643.35,0.00013698,2]
[329958282,1718868642071,-500.0,0.00013698,2]
[329958284,1718868642081,-1245.88,0.00013698,2]
[329958286,1718868642091,-500.0,0.00013698,2]
[329958288,1718868642102,-1679.85,0.00013698,2]
[329958290,1718868642115,-745.67,0.00013698,2]
[329958293,1718868642127,-2096.88,0.00013698,2]
[329958295,1718868642136,-500.0,0.00013698,2]
[329958296,1718868642146,-773.46,0.00013698,2]
[329958298,1718868642158,-4491.22,0.00013698,2]
[329958300,1718868642167,-3745.07,0.00013698,2]
[329958302,1718868642177,-500.0,0.00013698,2]
[329958305,1718868642187,-500.0,0.00013698,2]
[329958306,1718868642200,-500.0,0.00013698,2]
[329958309,1718868642211,-573.66,0.00013698,2]
[329958311,1718868642221,-500.0,0.00013698,2]
[329958313,1718868642231,-500.0,0.00013698,2]
[329958315,1718868642241,-500.0,0.00013698,2]
[329958317,1718868642250,-25586.77,0.00013698,2]
[329958319,1718868642260,-500.0,0.00013698,2]
[329958321,1718868642270,-921.91,0.00013698,2]
[329958323,1718868642279,-500.0,0.00013698,2]
[329958324,1718868642289,-500.0,0.00013698,2]
[329958327,1718868642299,-1599.91,0.00013698,2]
[329958328,1718868642309,-500.0,0.00013698,2]
[329958331,1718868642318,-6047.27,0.00013698,2]
[329958332,1718868642328,-1127.54,0.00013698,2]
[329958335,1718868642337,-11738.61,0.00013698,2]
[329958337,1718868642347,-500.0,0.00013698,2]
[329958339,1718868642357,-489.04013966,0.00013698,2]
[329958340,1718868642367,-500.0,0.00013698,2]
[329958342,1718868642377,-500.0,0.00013698,2]
[329958345,1718868642388,-500.0,0.00013698,2]
[329958347,1718868642398,-559.95,0.00013698,2]
[329958349,1718868642408,-500.0,0.00013698,2]
[329958351,1718868642418,-700.53,0.00013698,2]
[329958353,1718868642428,-500.0,0.00013698,2]
[329958355,1718868642438,-1462.26,0.00013698,2]
[329958357,1718868642448,-595.6,0.00013698,2]
[329958359,1718868642458,-511.45854558,0.00013698,2]
[329958361,1718868642468,-500.0,0.00013698,2]
[329958363,1718868642478,-500.0,0.00013698,2]
[329958365,1718868642489,-4464.78,0.00013698,2]
[329958367,1718868642499,-500.0,0.00013698,2]
[329958369,1718868642508,-500.0,0.00013698,2]
[329958371,1718868642517,-4925.72,0.00013698,2]
[329958373,1718868642527,-500.0,0.00013698,2]
[329958375,1718868642537,-2909.54,0.00013698,2]
[329958377,1718868642547,-500.0,0.00013698,2]
[329958379,1718868642557,-779.96,0.00013698,2]
[329958381,1718868642567,-500.0,0.00013698,2]
[329958383,1718868642576,-500.0,0.00013698,2]
[329958385,1718868642585,-684.19,0.00013698,2]
[329958387,1718868642596,-623.45,0.00013698,2]
[329958389,1718868642606,-2566.86,0.00013698,2]
[329958391,1718868642616,-8658.3,0.00013698,2]
[329958394,1718868642626,-500.0,0.00013698,2]
[329958396,1718868642636,-500.0,0.00013698,2]
[329958398,1718868642646,-500.0,0.00013698,2]
[329958400,1718868642656,-500.0,0.00013698,2]
[329958402,1718868642665,-1131.51,0.00013698,2]
[329958404,1718868642675,-500.0,0.00013698,2]
[329958406,1718868642684,-500.0,0.00013698,2]
[329958408,1718868642694,-11266.24,0.00013698,2]
[329958410,1718868642704,-1337.32,0.00013698,2]
[329958412,1718868642713,-500.0,0.00013698,2]
[329958414,1718868642723,-500.0,0.00013698,2]
[329958416,1718868642733,-1943.24,0.00013698,2]
[329958418,1718868642743,-500.0,0.00013698,2]
[329958420,1718868642752,-4434.6,0.00013698,2]
[329958422,1718868642762,-500.0,0.00013698,2]
[329958424,1718868642772,-500.0,0.00013698,2]
[329958426,1718868642781,-500.0,0.00013698,2]
[329958428,1718868642791,-634.7,0.00013698,2]
[329958430,1718868642800,-500.0,0.00013698,2]
[329958432,1718868642809,-500.0,0.00013698,2]
[329958434,1718868642819,-763.19,0.00013698,2]
[329958436,1718868642829,-500.0,0.00013698,2]
[329958438,1718868642838,-500.0,0.00013698,2]
[329958440,1718868642848,-692.63,0.00013698,2]
[329958442,1718868642858,-500.0,0.00013698,2]
[329958444,1718868642868,-500.0,0.00013698,2]
[329958446,1718868642879,-500.0,0.00013698,2]
[329958448,1718868642889,-500.0,0.00013698,2]
[329958450,1718868642899,-792.98,0.00013698,2]
[329958452,1718868642909,-4476.55,0.00013698,2]
[329958454,1718868642918,-5124.53,0.00013698,2]
[329958456,1718868642927,-555.32,0.00013698,2]
[329958458,1718868642937,-5124.53,0.00013698,2]
[329958460,1718868642947,-500.0,0.00013698,2]
[329958461,1718868642956,-500.0,0.00013698,2]
[329958464,1718868642965,-10841.53,0.00013698,2]
[329958466,1718868642975,-500.0,0.00013698,2]
[329958469,1718868642984,-500.0,0.00013698,2]
[329958471,1718868642994,-1044.51,0.00013698,2]
[329958474,1718868643003,-558.45,0.00013698,2]
[329958476,1718868643013,-1340.35,0.00013698,2]
[329958478,1718868643023,-1223.31,0.00013698,2]
[329958480,1718868643032,-500.0,0.00013698,2]
[329958482,1718868643041,-772.92,0.00013698,2]
[329958484,1718868643050,-500.0,0.00013698,2]
[329958485,1718868643060,-2028.28,0.00013698,2]
[329958486,1718868643068,-1973.35,0.00013698,2]
[329958488,1718868643077,-1639.71,0.00013698,2]
[329958490,1718868643086,-1018.29,0.00013698,2]
[329958492,1718868643095,-500.0,0.00013698,2]
[329958493,1718868643105,-1454.15,0.00013698,2]
[329958494,1718868643118,-736.22,0.00013698,2]
[329958495,1718868643127,-1628.31,0.00013698,2]
[329958496,1718868643136,-500.0,0.00013698,2]
[329958498,1718868643146,-500.0,0.00013698,2]
[329958499,1718868643157,-546.9883321,0.00013698,2]
[329958501,1718868643167,-2379.41,0.00013698,2]
[329958504,1718868643177,-1267.34,0.00013698,2]
[329958506,1718868643187,-634.67,0.00013698,2]
[329958507,1718868643199,-500.0,0.00013698,2]
[329958509,1718868643209,-1531.38,0.00013698,2]
[329958511,1718868643218,-500.0,0.00013698,2]
[329958513,1718868643228,-591.42,0.00013698,2]
[329958516,1718868643239,-2328.93,0.00013698,2]
[329958518,1718868643248,-500.0,0.00013698,2]
[329958520,1718868643258,-1136.93,0.00013698,2]
[329958522,1718868643268,-9414.69,0.00013698,2]
[329958524,1718868643277,-500.0,0.00013698,2]
[329958525,1718868643287,-500.0,0.00013698,2]
[329958528,1718868643297,-500.0,0.00013698,2]
[329958530,1718868643306,-1669.21,0.00013698,2]
[329958531,1718868643316,-1173.11,0.00013698,2]
[329958533,1718868643325,-785.4,0.00013698,2]
[329958535,1718868643335,-1186.41,0.00013698,2]
[329958537,1718868643344,-500.0,0.00013698,2]
[329958540,1718868643353,-858.66,0.00013698,2]
[329958542,1718868643363,-500.0,0.00013698,2]
[329958544,1718868643372,-2237.75864428,0.00013698,2]
[329958595,1718868646078,-785.60005,0.00013698,2]
[329958596,1718868646090,-2514.27130572,0.00013698,2]
[329958597,1718868646100,-500.0,0.00013698,2]
[329958598,1718868646112,-565.90147235,0.00013698,2]
[329958599,1718868646122,-500.0,0.00013698,2]
[329958600,1718868646136,-500.0,0.00013698,2]
[329958601,1718868646146,-249.22828653,0.00013698,2]
[329958602,1718868646157,-501.31,0.00013698,2]
[329958603,1718868646167,-2797.73,0.00013698,2]
[329958604,1718868646176,-3533.44,0.00013698,2]
[329958605,1718868646186,-1611.45,0.00013698,2]
[329958606,1718868646195,-500.0,0.00013698,2]
[329958607,1718868646205,-619.92,0.00013698,2]
[329958608,1718868646214,-500.0,0.00013698,2]
[329958609,1718868646223,-500.0,0.00013698,2]
[329958610,1718868646233,-5427.81528111,0.00013698,2]
[329958611,1718868646276,-1996.58471889,0.00013698,2]
[329958612,1718868646286,-500.0,0.00013698,2]
[329958613,1718868646296,-714.89,0.00013698,2]
[329958614,1718868646305,-500.0,0.00013698,2]
[329958615,1718868646314,-500.0,0.00013698,2]
[329958616,1718868646324,-4389.04,0.00013698,2]
[329958617,1718868646335,-500.0,0.00013698,2]
[329958618,1718868646346,-1684.09,0.00013698,2]
[329958619,1718868646356,-529.81501714,0.00013698,2]
[329958620,1718868646366,-311.22099587,0.00013698,2]
[329958621,1718868646378,-188.77900413,0.00013698,2]
[329958622,1718868646388,-1401.37,0.00013698,2]
[329958623,1718868646397,-1614.2,0.00013698,2]
[329958624,1718868646406,-281.1055404,0.00013698,2]
[329958625,1718868646416,-1182.50884038,0.00013698,2]
[329958626,1718868646426,-326.6444601,0.00013698,2]
[329958627,1718868646437,-2370.60669952,0.00013698,2]
[329958628,1718868646447,-2524.16232483,0.00013698,2]
[329958629,1718868646588,-331.62278326,0.00013698,2]
[329958630,1718868646777,-443.15946303,0.00013698,2]
[329958631,1718868646792,-415.42542888,0.00013698,2]
[329958632,1718868646802,-44.52707112,0.00013698,2]
[329958633,1718868646814,-1821.81292888,0.00013698,2]
[329958634,1718868646824,-235.78396104,0.00013698,2]
[329958635,1718868646836,-2292.51603896,0.00013698,2]
[329958636,1718868646847,-500.0,0.00013698,2]
[329958637,1718868646856,-500.0,0.00013698,2]
[329958638,1718868646866,-500.0,0.00013698,2]
[329958639,1718868646877,-2146.91,0.00013698,2]
[329958640,1718868646887,-1339.44110153,0.00013698,2]
[329958641,1718868646899,-266.38889847,0.00013698,2]
[329958642,1718868646909,-2332.08,0.00013698,2]
[329958643,1718868646919,-500.0,0.00013698,2]